Cogmind - Beta 14 @@@ ROGUE MODE // 2024.11.30 @ 03:05:22 Player: ffmpega Result: Destroyed by S-10 Pest with Light Assault Rifle Performance ------------- Evolutions (1) 500 Regions Visited (2) 400 Robots Destroyed (19) 95 Value Destroyed (279) 279 Prototype IDs (0) 0 Alien Tech Used (0) 0 Bonus (0) 0 TOTAL SCORE: 1274 Bonus ------- None Cogmind --------- Core Integrity 0/400 Matter 300/300 Energy 100/100 System Corruption 1% Temperature Cool (18) Movement Core (350) Ox6 Location -9/Materials Parts ------- > --- POWER (1) -------- (None) > --- PROPULSION (4) --- (None) > --- UTILITY (2) ------ Large Storage Unit > --- WEAPON (2) ------- (None) > --- INVENTORY (15) --- Light Ion Engine Light Treads Wheel Wheel Heat Sink Heat Sink Small Storage Unit Small Storage Unit Medium Storage Unit Medium Storage Unit Large Storage Unit Medium Matter Pod (100) Medium Matter Pod (100) Peak State ------------ > --- POWER ------------ Light Ion Engine > --- PROPULSION ------- Aluminum Leg Aluminum Leg Aluminum Leg Aluminum Leg > --- UTILITY ---------- Heat Sink Large Storage Unit > --- WEAPON ----------- Medium Laser Medium Laser > --- INVENTORY -------- Light Treads Wheel Wheel Heat Sink Heat Sink Small Storage Unit Small Storage Unit Medium Storage Unit Medium Storage Unit Large Storage Unit Medium Matter Pod Medium Matter Pod Medium Matter Pod Light Assault Rifle [Rating: 10] Favorites ----------- Power Light Ion Engine Engine Light Ion Engine Propulsion Aluminum Leg Leg Aluminum Leg Utility Large Storage Unit Device Heat Sink Storage Large Storage Unit Weapon Medium Laser Energy Gun Medium Laser Ballistic Gun Light Assault Rifle Build | -11 -10 -9 ------- Run | Yrd Mat Mat Slots Evolved 2 | . . 2 Power . | . . . Propulsion 2 | . . 2 Utility . | . . . Weapon . | . . . Parts Attached 15 | 4 5 6 Power 3 | 1 1 1 Engine 3 | 1 1 1 Core . | . . . Reactor . | . . . Propulsion 4 | 2 . 2 Treads . | . . . Leg 4 | 2 . 2 Wheel . | . . . Hover . | . . . Flight . | . . . Utility 3 | . 2 1 Device 2 | . 1 1 Storage 1 | . 1 . Processor . | . . . Hackware . | . . . Protection . | . . . Artifact . | . . . Weapon 5 | 1 2 2 Energy Gun 2 | . 2 . Energy Cannon . | . . . Ballistic Gun 3 | 1 . 2 Ballistic Cannon . | . . . Launcher . | . . . Special Weapon . | . . . Impact Weapon . | . . . Slashing Weapon . | . . . Piercing Weapon . | . . . Special Melee Weapon . | . . . Unidentified Prototypes . | . . . Parts Lost 10 | . 1 9 Power 2 | . 1 1 Propulsion 3 | . . 3 Utility 1 | . . 1 Weapon 4 | . . 4 Highest Loss Streak 9 | . 1 9 To Critical Strikes . | . . . Average Slot Usage (%) 89 | . 89 88 Engine 12 | . 13 10 Leg 31 | . 28 36 Device 9 | . 9 10 Storage 12 | . 12 11 Energy Gun 19 | . 19 19 Ballistic Gun 2 | . 4 1 Peak Build Rating 10 | 4 8 10 Average Rating 7 | 3 6 8 On Entrance 4 | . 4 8 Naked Turns . | . . . Heaviest Build 28 | 4 28 28 Greatest Support 40 | 20 20 40 Greatest Overweight (x) 7 | . 1 7 Average Overweight (x) . | . . . Largest Inventory Capacity 15 | 5 15 15 Average Capacity 13 | 5 14 15 Most Carried 15 | 4 15 15 Average Carried 11 | 2 10 14 Final Capacity 15 | 5 15 15 Final Carried 15 | 4 15 13 Class Distribution -------------------- 96% | Mutant 3% | Scavenger-Mutant Dominant Class ---------------- Mutant | -10/Materials Mutant | -9/Materials Resources | -11 -10 -9 ----------- Run | Yrd Mat Mat Matter Collected 580 | 244 155 181 Remotely . | . . . Salvage Created 482 | 43 184 255 Parts 35 | . 21 14 Haulers Intercepted . | . . . Recyclers Shooed . | . . . Parts Field Recycled . | . . . Retrieved Matter . | . . . Parts Self-Destructed . | . . . Prevented . | . . . Kills | -11 -10 -9 ------- Run | Yrd Mat Mat Combat Hostiles Destroyed 16 | 1 7 8 Guns 16 | 1 7 8 Classes Destroyed 5 | 1 3 1 Worker 1 | . 1 . Recycler 1 | . . 1 Watcher 1 | . 1 . Swarmer 12 | . 6 6 Grunt 4 | 1 1 2 Best Kill Streak 6 | 1 6 6 Combat Bots Only 6 | 1 6 6 Max Kills in Single Turn 2 | 1 2 2 Gunslinging 1 | . 1 . Exploded . | . . . Melee . | . . . Uniques/NPCs Destroyed . | . . . Combat | -11 -10 -9 -------- Run | Yrd Mat Mat Hostile Shots Fired 181 | 4 48 129 Missed 50 | 1 13 36 Damage Taken 1362 | 34 317 1011 Core 506 | 12 93 401 Absorbed by Shields . | . . . Core Remaining (%) 76 | 95 58 . Volleys Fired 56 | 4 18 34 Largest 2 | 1 2 2 Hottest 100 | 20 100 100 Shots Fired 97 | 4 37 56 Gun 97 | 4 37 56 Cannon . | . . . Launcher . | . . . Special . | . . . Kinetic 16 | 4 . 12 Thermal 81 | . 37 44 Explosive . | . . . Electromagnetic . | . . . Robot Hit Streak 4 | 2 4 3 Robot Miss Streak 6 | 1 5 6 Penetration Max . | . . . Secondary Targets 3 | . 3 . Max Gunslinging Chain 1 | . 1 . Shots Hit Robots 49 | 3 18 28 Core Hits 29 | 3 10 16 Critical Kills . | . . . Critical Parts Destroyed . | . . . Critical Strikes 5 | . 2 3 Burn 5 | . 2 3 Melee Attacks . | . . . Impact . | . . . Slashing . | . . . Piercing . | . . . Sneak Attacks . | . . . Combat Hostiles . | . . . Follow-up Attacks . | . . . Damage Inflicted 589 | 19 223 347 Guns 584 | 19 223 342 Cannons . | . . . Explosions . | . . . Melee . | . . . Ramming 5 | . . 5 Kinetic 60 | 19 . 41 Thermal 524 | . 223 301 Explosive . | . . . Electromagnetic . | . . . Impact . | . . . Slashing . | . . . Piercing . | . . . Highest Corruption 1 | . 1 1 Average Corruption 1 | . 1 1 Corruption Purged . | . . . Corruption Blocked . | . . . Effects 4 | . 3 1 Heat Flow Errors 1 | . 1 . Parts Rejected 1 | . . 1 Data Loss (minor) 1 | . 1 . Misfires 1 | . 1 . Overload Shots . | . . . Overflow Damage . | . . . Projectiles . | . . . Explosions . | . . . Melee . | . . . Knockbacks . | . . . Impact . | . . . Kinetic . | . . . Secondary . | . . . Self-Inflicted Damage . | . . . Shots . | . . . Rammed 4 | . . 4 Targets Rammed 7 | . 2 5 Kicked 3 | . 2 1 Crushed . | . . . Highest Temperature 129 | 6 129 30 Average Temperature 22 | 6 24 16 Received Heat Transfer 216 | 18 24 174 Siege Activations . | . . . Robots Corrupted . | . . . Combat Hostiles . | . . . Parts Fried . | . . . Impact Corruptions . | . . . Robots Melted . | . . . Combat Hostiles . | . . . Parts Melted 4 | . 2 2 Heat Transferred 1924 | . 814 1110 Parts Sabotaged . | . . . Parts Stolen . | . . . Parts Stripped . | . . . Power Chain Reactions . | . . . Alert | -11 -10 -9 ------- Run | Yrd Mat Mat Peak Influence 305 | 20 198 305 Initial 15 | . 13 15 Average 80 | 1 39 149 Maximum Alert Level 1 | . . 1 Low Security (%) 92 | 100 100 80 Level 1 7 | . . 19 Level 2 . | . . . Level 3 . | . . . Level 4 . | . . . Level 5 . | . . . High Security . | . . . Max Security . | . . . Squads Dispatched 1 | . . 1 Investigation 1 | . . 1 Extermination . | . . . Reinforcement . | . . . Assault . | . . . Garrison . | . . . Intercept . | . . . Searches Triggered . | . . . Construction Impeded . | . . . Haulers Reinforced . | . . . Active Scanning Responses . | . . . Cargo Convoy Interrupts . | . . . Stealth | -11 -10 -9 --------- Run | Yrd Mat Mat Distress Signals 1 | . 1 . Communications Jammed . | . . . Distress Signals . | . . . Times Spotted 33 | 1 15 17 Peak Tracking Total 7 | 1 6 7 Tactical Retreats 6 | . 2 4 Traps | -11 -10 -9 ------- Run | Yrd Mat Mat Traps Triggered 2 | . 1 1 Indirectly . | . . . Trap Hack Attempts . | . . . Triggered . | . . . Disarmed . | . . . Reprogrammed . | . . . Reused . | . . . Traps Extracted . | . . . Installed . | . . . Triggered . | . . . Machines | -11 -10 -9 ---------- Run | Yrd Mat Mat Machines Disabled . | . . . Max in Single Turn . | . . . Machines Repaired . | . . . Machines Dismantled . | . . . Machines Sabotaged . | . . . Overloaded Fab Kills . | . . . Hacking | -11 -10 -9 --------- Run | Yrd Mat Mat Machines Accessed 1 | . . 1 Terminals 1 | . . 1 Fabricators . | . . . Repair Stations . | . . . Recycling Units . | . . . Scanalyzers . | . . . Garrison Access . | . . . Total Hacks 7 | . . 7 Successful 4 | . . 4 Failed 3 | . . 3 Catastrophic . | . . . Database Lockouts . | . . . Manual . | . . . Terminals 7 | . . 7 Fabricators . | . . . Repair Stations . | . . . Recycling Units . | . . . Scanalyzers . | . . . Garrison Access . | . . . Terminal Hacks 4 | . . 4 Record 3 | . . 3 Alert Level 1 | . . 1 Fabricator Hacks . | . . . Repair Station Hacks . | . . . Recycling Unit Hacks . | . . . Scanalyzer . | . . . Garrison Access Hacks . | . . . Unauthorized Hacks . | . . . Terminals . | . . . Fabricators . | . . . Repair Stations . | . . . Recycling Units . | . . . Scanalyzers . | . . . Garrison Access . | . . . Data Cores Recovered . | . . . Used . | . . . Hacking Detections 1 | . . 1 Full Trace Events 1 | . . 1 Feedback Events . | . . . Feedback Blocked . | . . . Robot Schematics Acquired . | . . . Robots Built . | . . . Authchips . | . . . Time . | . . . Total Robot Build Rating . | . . . Part Schematics Acquired . | . . . Parts Built . | . . . Authchips . | . . . Time . | . . . Total Part Build Rating . | . . . Parts Repaired . | . . . Time . | . . . Parts Recycled . | . . . Recycled Matter . | . . . Retrieved Matter . | . . . Retrieved Components . | . . . Parts Scanalyzed . | . . . Part Schematics Acquired . | . . . Parts Damaged . | . . . Bothacking | -11 -10 -9 ------------ Run | Yrd Mat Mat Used RIF Installer . | . . . Robots Hacked . | . . . Non-combat . | . . . Combat . | . . . Robot Hacks Applied . | . . . Relay Couplers Released . | . . . Fabnet Peak Effective % . | . . . Robots Rewired . | . . . Allies Hacked . | . . . Hacks Repelled . | . . . Allies | -11 -10 -9 -------- Run | Yrd Mat Mat Total Allies . | . . . Largest Group . | . . . Highest-Rated Group . | . . . Highest-Rated Ally . | . . . Total Orders . | . . . Ally Attacks . | . . . Total Damage . | . . . Kills . | . . . Allies Corrupted . | . . . Allies Melted . | . . . Intel | -11 -10 -9 ------- Run | Yrd Mat Mat Robot Analysis Total . | . . . Derelict Logs Recovered . | . . . Drone Launches . | . . . Drone Recoveries . | . . . Exploration | -11 -10 -9 ------------- Run | Yrd Mat Mat Turns Passed 1025 | 84 530 411 Spaces Moved 536 | 64 243 229 Core 16 | 14 . 2 Treads . | . . . Legs 520 | 50 243 227 Wheels . | . . . Hover . | . . . Flight . | . . . Fastest Speed 50 | 50 120 120 Average Speed 147 | 104 181 123 Slowest Speed 400 | 120 190 400 Overloaded Moves . | . . . Propulsion Burnouts . | . . . Robots Hopped . | . . . Cave-ins Triggered . | . . . Exploration Rate (%) 24 | 6 43 24 Regions Visited 2 Branch Regions . Pre-discovered Areas . | . . . Known Exits Taken . | . . . Unknown Exits Taken 2 | 1 1 . Scrap Searched . | . . . Spaces Dug . | . . . Terrain Destroyed . | . . . Melee . | . . . Projectile . | . . . AOE . | . . . Terrain Rammed . | . . . Walls Destroyed . | . . . Machines Disabled . | . . . Actions | -11 -10 -9 --------- Run | Yrd Mat Mat Total 665 | 77 293 295 Wait 26 | . 13 13 Move 534 | 63 242 229 Hop . | . . . Pick Up 24 | 6 13 5 Fast Attach 4 | 2 2 . Attach 8 | 2 2 4 Detach . | . . . Swap 3 | . 1 2 Drop 3 | . . 3 Fire 56 | 4 18 34 Melee . | . . . Ram 4 | . . 4 Kick 3 | . 2 1 Crush . | . . . Escape Stasis . | . . . Rewire . | . . . Trap . | . . . Miscellaneous . | . . . Route ------- -11/Scrapyard -10/Materials (discovered 2 exits: *Mat / [*Min]) -9/Materials History --------- Turn | Location | Event 2 | -11/Scrapyard | Met Revision 17 66 | -11/Scrapyard | Discovered new exit (range 8) 85 | -11/Scrapyard | Entered Materials 305 | -10/Materials | Build established: Mutant 312 | -10/Materials | Discovered new exit (range 6) 601 | -10/Materials | Discovered new exit (range 8) 615 | -10/Materials | Entered another Materials area 615 | -9/Materials | Evolved 2 slots: Propulsion x2 1010 | -9/Materials | Core integrity fell below 50% 1024 | -9/Materials | Core integrity fell below 20% 1026 | -9/Materials | Destroyed by S-10 Pest with Light Assault Rifle Last Messages --------------- 00987_ S-10 Pest destroyed. 00990_ Aluminum Leg destroyed. 00990_ Critical hit (Burn: +37). 00992_ Lgt. Ion Engine destroyed. 00994_ Heat Sink destroyed. 00999_ Aluminum Leg destroyed. 01001_ R-06 Scavenger collects Aluminum Leg. 01002_ K-01 Serf collects debris. 01005_ R-06 Scavenger collects Broken Lgt. Ion Engine. 01006_ Lgt. Assault Rifle destroyed. 01006_ K-01 Serf collects debris. 01010_ Lgt. Assault Rifle destroyed. 01011_ Slammed into Y-45 Defender. 01014_ K-01 Serf cleans the Terminal. 01014_ Slammed into T-07 Excavator. 01021_ Slammed into S-10 Pest. 01022_ K-01 Serf collects debris. 01025_ Slammed into S-10 Pest. [Achievement: First Step to Greatness] Map ----- +----------------------------------------------------+ | ?????????? ???????????????????????????????????? | | #?????????# #??????????????????????????????????? | | ########### #??????????????????????????????????? | | #??????????????????????????????????? | | #########??????????????????????????? | | ## #??????????????????????????? | | ########## ## #??????????????????????????? | | #????????# ## #??????????????????????????? | | ?????????# ## #########??????????????????? | | ?????????# ## "T" ## = #??????????????????? | | ########## ## """ ## #??????????????????? | | ##+###### """ #??????????????????? | | #### """ #??????????????????? | | + """ #??????????????????? | | " """ """ # #??????????????????? | | " """ """ ###+###+########??????????????????? | | " """ """ ## #???????????????????????? | | ## % | #???????????????????????? | | ## #???????????????????????? | | """ """ + #???????????????????????? | | """ """ ## #???????????????????????? | | %""" """ ### #???????????????????????? | | #?# #???????????????????????? | | #?# %%#???????????????????????? | | #####/# #?#########+####????????????????????? | | % # ####???# Y%@Y #????????????????????? | | """ #^ #???# s #????????????????????? | | " """ # ^ Y %k #???????????????? | | T """ # T #???????????????? | | " # ????????????? | | # ##### ##########???????????? | | #################???# #????????????????????? | | ????????????????????#########????????????????????? | | ?????????????????????????????????????????????????? | | ?????????????????????????????????????????????????? | | | | | | | | | | | | | | | | | | | | | | | | | | | | | | | +----------------------------------------------------+ Best States ------------- Heat Dissipation 38 Energy Generation 10 Energy Capacity 125 Matter Stores 300 Matter Capacity 300 Sight Range 16 Terrain Scan Density 10 Evasion (%) 55 Item Schematics ----------------- None Robot Schematics ------------------ None Fabricated ------------ Nothing Alien Tech Used ----------------- None Achievements -------------- First Step to Greatness Challenges ------------ None Game ------ Seed DamperAngularWeb Manual? 0 Play Time 00:25:00 Cumulative 3.2 hours Start 2024.11.30 @ 02:40:17 End 2024.11.30 @ 03:05:22 Sessions 1 Manual Loads 0 Difficulty Rogue Special Mode None Game No. 3 Rogue 3 Adventurer 0 Explorer 0 Win Type - Total 0 Types 0/0/0/0/0/0/0/0/0 Lore% 0 Gallery% 5 Achievement% 8 Wizard Run 0 Options --------- Layout 1 ASCII 0 Keyboard 1 Movement Vi Keybinds 0 Fullscreen 1 Font 24/Smallcaps Map View 50x35 Zoom Use 0% Tactical HUD 1 Map Filters NONE Filters NONE Steam 1 RUN: cd61d21b-29c9-408a-bcc0-e7c0d9ccfe0b